[Event "RUDAR 2 IM 2022"]
[Site "Pozarevac"]
[Date "2022.04.03"]
[Round "2.2"]
[White "Savitha Shri B"]
[Black "Anishka Vikram"]
[Result "1-0"]
[ECO "B53"]
[WhiteElo "2257"]
[BlackElo "2000"]
[Annotator "ChessBase"]
[PlyCount "163"]
[EventDate "2022.03.27"]
[EventType "tourn"]
[EventCountry "SRB"]
[SourceTitle "playchess.com"]
[Source "ChessBase"]
[SourceQuality "1"]
[TimeControl "40/5400+30:900+30"]

1. e4 {[%emt 0:01:38]} c5 {[%emt 0:00:14]} 2. Nf3 {[%emt 0:00:07]} d6 {[%emt 0:00:05]} 3. d4 {[%emt 0:00:07]} cxd4 {[%emt 0:00:06]} 4. Qxd4 {[%emt 0:00:08]} Nc6 {[%emt 0:01:18]} 5. Qe3 {[%emt 0:00:06]} Nf6 {[%emt 0:01:36]} 6. Be2 {[%emt 0:00:09]} g6 {[%emt 0:00:41]} 7. O-O {[%emt 0:00:09]} Bg7 {[%emt 0:00:08]} 8. c4 {[%emt 0:00:08]} O-O {[%emt 0:01:19]} 9. Nc3 {[%emt 0:00:05]} Bd7 {[%emt 0:08:57]} 10. Rb1 {[%emt 0:00:47]} Rc8 {[%emt 0:02:13]} 11. h3 {[%emt 0:03:04]} Ne8 {[%emt 0:04:32]} 12. b3 {[%emt 0:04:10]} f5 {[%emt 0:02:43]} 13. Bb2 {[%emt 0:04:06]} Nf6 {[%emt 0:04:08]} 14. exf5 {[%emt 0:07:55]} Bxf5 {[%emt 0:00:44]} 15. Rbd1 {[%emt 0:00:50]} Qa5 {[%emt 0:16:30]} 16. a3 {[%emt 0:10:37]} Qc5 {[%emt 0:13:39]} 17. Qc1 {[%emt 0:04:43]} Qb6 {[%emt 0:06:55]} 18. b4 {[%emt 0:02:03]} Be6 {[%emt 0:04:36]} 19. Qa1 {[%emt 0:03:29]} Nb8 {[%emt 0:07:56]} 20. Nd5 {[%emt 0:09:25]} Nxd5 {[%emt 0:02:54]} 21. cxd5 {[%emt 0:05:19]} Bxb2 {[%emt 0:00:11]} 22. Qxb2 {[%emt 0:00:10]} Bd7 {[%emt 0:04:54]} 23. Nd4 {[%emt 0:02:57]} Na6 {[%emt 0:01:12]} 24. Qd2 {[%emt 0:08:24]} Nc7 {[%emt 0:03:33]} 25. Qg5 {[%emt 0:04:02]} Rf6 {[%emt 0:01:47]} 26. Rfe1 {[%emt 0:04:46]} Ne8 {[%emt 0:01:07]} 27. Bf3 {[%emt 0:04:40]} Qd8 {[%emt 0:01:26]} 28. Re4 {[%emt 0:01:40]} Rc7 {[%emt 0:01:15]} 29. Rde1 {[%emt 0:00:24]} Bf5 {[%emt 0:00:48]} 30. Rh4 {[%emt 0:01:50]} Rf7 {[%emt 0:01:06]} 31. Rf4 {[%emt 0:04:04]} Ng7 {[%emt 0:01:08]} 32. Qh6 {[%emt 0:01:28]} Qf8 {[%emt 0:04:44]} 33. Rh4 {[%emt 0:02:23]} Ne8 {[%emt 0:01:09]} 34. Qe3 {[%emt 0:01:02]} Ng7 {[%emt 0:00:25]} 35. Nb5 {[%emt 0:05:52]} Rc2 {[%emt 0:00:47]} 36. Nd4 {[%emt 0:02:41]} Rc7 {[%emt 0:00:28]} 37. Bg4 {[%emt 0:00:46]} h5 {[%emt 0:00:47]} 38. Bf3 {[%emt 0:01:11]} Qd8 {[%emt 0:00:30]} 39. Qg5 {[%emt 0:00:27]} Rd7 {[%emt 0:00:24]} 40. g4 {[%emt 0:00:00]} Bd3 {[%emt 0:00:00]} 41. gxh5 {[%emt 0:01:43]} e5 {[%emt 0:00:46]} 42. Qxd8+ {[%emt 0:07:09]} Rxd8 {[%emt 0:00:01]} 43. Be2 {[%emt 0:00:18]} Bxe2 {[%emt 0:00:30]} 44. hxg6 {[%emt 0:00:20]} Rf6 {[%emt 0:00:23]} 45. Nxe2 {[%emt 0:00:05]} Rxg6+ {[%emt 0:00:03]} 46. Rg4 {[%emt 0:00:30]} Rxg4+ {[%emt 0:02:12]} 47. hxg4 {[%emt 0:00:01]} Rc8 {[%emt 0:00:13]} 48. Ng3 {[%emt 0:00:44]} Rc4 {[%emt 0:03:15]} 49. Ne4 {[%emt 0:01:50]} Ne8 {[%emt 0:00:07]} 50. f3 {[%emt 0:01:12]} Rd4 {[%emt 0:00:30]} 51. Rc1 {[%emt 0:00:34]} Rxd5 {[%emt 0:01:40]} 52. Rc8 {[%emt 0:00:05]} Rd1+ {[%emt 0:00:04]} 53. Kf2 {[%emt 0:00:14]} Kf7 {[%emt 0:00:07]} 54. Rb8 {[%emt 0:00:29]} b6 {[%emt 0:03:23]} 55. Rb7+ {[%emt 0:00:34]} Ke6 {[%emt 0:00:52]} 56. Rxa7 {[%emt 0:00:08]} d5 {[%emt 0:03:06]} 57. Ng5+ {[%emt 0:00:20]} Kf6 {[%emt 0:00:06]} 58. Nh7+ {[%emt 0:00:07]} Kg6 {[%emt 0:01:06]} 59. Nf8+ {[%emt 0:00:38]} Kg5 {[%emt 0:00:23]} 60. Re7 {[%emt 0:00:37]} Nd6 {[%emt 0:00:18]} 61. Rxe5+ {[%emt 0:04:15]} Kf6 {[%emt 0:00:58]} 62. Re6+ {[%emt 0:00:06]} Kg7 {[%emt 0:00:05]} 63. Rxd6 {[%emt 0:00:04]} Kxf8 {[%emt 0:00:03]} 64. Rxb6 {[%emt 0:00:05]} Ra1 {[%emt 0:00:29]} 65. Rd6 {[%emt 0:00:19]} Rxa3 {[%emt 0:00:04]} 66. Rxd5 {[%emt 0:00:04]} Rb3 {[%emt 0:00:05]} 67. Rb5 {[%emt 0:00:03]} Ke7 {[%emt 0:00:07]} 68. g5 {[%emt 0:00:17]} Kf7 {[%emt 0:00:05]} 69. Kg3 {[%emt 0:00:13]} Rb1 {[%emt 0:00:17]} 70. Kf4 {[%emt 0:00:05]} Rb3 {[%emt 0:00:19]} 71. Kg4 {[%emt 0:00:05]} Kg6 {[%emt 0:00:28]} 72. Rb6+ {[%emt 0:00:04]} Kf7 {[%emt 0:00:04]} 73. f4 {[%emt 0:00:03]} Rb1 {[%emt 0:00:06]} 74. Kf5 {[%emt 0:00:03]} Rd1 {[%emt 0:00:07]} 75. Rb7+ {[%emt 0:00:04]} Kf8 {[%emt 0:00:05]} 76. Kg6 {[%emt 0:00:14]} Rd6+ {[%emt 0:00:05]} 77. Kh7 {[%emt 0:00:06]} Rd1 {[%emt 0:00:23]} 78. f5 {[%emt 0:00:13]} Rd2 {[%emt 0:00:09]} 79. Kg6 {[%emt 0:00:07]} Rd6+ {[%emt 0:00:06]} 80. f6 {[%emt 0:00:06]} Rd8 {[%emt 0:00:03]} 81. Rh7 {[%emt 0:00:05]} Kg8 {[%emt 0:00:09]} 82. f7+ {[%emt 0:00:13]} 1-0

[Event "RUDAR 2 IM 2022"]
[Site "Pozarevac"]
[Date "2022.04.03"]
[Round "2.4"]
[White "Bryakin, Mikhail"]
[Black "Velikic, Adela"]
[Result "1-0"]
[ECO "D79"]
[WhiteElo "2481"]
[BlackElo "2258"]
[Annotator "RC"]
[PlyCount "83"]
[EventDate "2022.03.27"]
[EventType "tourn"]
[EventCountry "SRB"]
[SourceTitle "playchess.com"]
[Source "ChessBase"]
[SourceQuality "1"]
[TimeControl "40/5400+30:900+30"]

1. Nf3 {[%emt 0:00:03]} d5 {[%emt 0:00:10]} 2. g3 {[%emt 0:00:12]} Nf6 {[%emt 0:00:53]} 3. Bg2 {[%emt 0:00:14]} g6 {[%emt 0:00:17]} 4. d4 {[%emt 0:03:38]} Bg7 {[%emt 0:00:10]} 5. O-O {[%emt 0:00:35]} O-O {[%emt 0:00:17]} 6. c4 {[%emt 0:00:33]} c6 {[%emt 0:00:46]} 7. cxd5 {[%emt 0:00:24]} cxd5 {[%emt 0:00:17]} 8. Nc3 {[%emt 0:00:06]} Nc6 {[%emt 0:00:53]} 9. Ne5 {[%emt 0:00:25]} Bf5 {[%emt 0:13:41]} 10. Nxc6 {[%emt 0:03:57]} bxc6 {[%emt 0:00:04]} 11. Bf4 {[%emt 0:00:10]} Nh5 {[%emt 0:22:45]} 12. Be3 {[%emt 0:01:06]} Qd7 {[%emt 0:06:03]} 13. Na4 {[%emt 0:03:20]} Bh3 {[%emt 0:14:06]} 14. Nc5 {[%emt 0:00:52]} Qf5 {[%emt 0:01:49]} 15. Qd3 {[%emt 0:00:22]} Bxg2 {[%emt 0:04:08]} 16. Qxf5 {[%emt 0:00:52]} gxf5 {[%emt 0:00:04]} 17. Kxg2 {[%emt 0:00:09]} Rfb8 {[%emt 0:05:31]} 18. b3 {[%emt 0:02:08]} a5 {[%emt 0:03:02]} 19. Rac1 {[%emt 0:00:51]} Rb4 {[%emt 0:05:12]} 20. Nd3 {[%emt 0:09:07]} Rb6 {[%emt 0:00:40]} 21. Rc3 {[%emt 0:00:34]} Nf6 {[%emt 0:05:32]} 22. Rfc1 {[%emt 0:01:00]} Rc8 {[%emt 0:09:05]} 23. Ne5 {[%emt 0:01:42]} Ne4 {[%emt 0:02:18]} 24. Rxc6 {[%emt 0:00:32]} Rbxc6 {[%emt 0:00:34]} 25. Nxc6 {[%emt 0:00:47]} Kf8 {[%emt 0:00:39]} 26. f3 {[%emt 0:01:44]} Nd6 {[%emt 0:00:10]} 27. Nxa5 {[%emt 0:08:15]} Rxc1 {[%emt 0:00:15]} 28. Bxc1 {[%emt 0:00:05]} Bxd4 {[%emt 0:00:03]} 29. Nc6 {[%emt 0:00:24]} Bc3 {[%emt 0:01:15]} 30. Ba3 {[%emt 0:00:39]} Nc8 {[%emt 0:00:45]} 31. Bc5 {[%emt 0:00:27]} Ke8 {[%emt 0:00:50]} 32. b4 {[%emt 0:03:12]} Kd7 {[%emt 0:00:43]} 33. b5 {[%emt 0:00:15]} e5 {[%emt 0:01:48]} 34. a4 {[%emt 0:00:46]} e4 {[%emt 0:00:25]} 35. a5 {[%emt 0:06:53]} Nd6 {[%emt 0:00:45]} 36. Bxd6 {[%emt 0:00:10]} Kxd6 {[%emt 0:00:04]} 37. a6 {[%emt 0:00:07]} Kc7 {[%emt 0:00:15]} 38. Ne7 {[%emt 0:00:18]} d4 {[%emt 0:00:23]} 39. Nd5+ {[%emt 0:00:11]} Kb8 {[%emt 0:00:24]} 40. b6 {[%emt 0:00:00]} Ba5 {[%emt 0:00:00]} 41. a7+ {[%emt 0:00:26]} Kb7 {[%emt 0:01:07]} 42. Nc7 {[%emt 0:00:17]} 1-0

[Event "RUDAR 2 IM 2022"]
[Site "Pozarevac"]
[Date "2022.04.04"]
[Round "3.3"]
[White "Ivanovic, Marko"]
[Black "Savitha Shri B"]
[Result "1-0"]
[ECO "B23"]
[WhiteElo "2302"]
[BlackElo "2257"]
[Annotator "NA RC"]
[PlyCount "65"]
[EventDate "2022.03.27"]
[EventType "tourn"]
[EventCountry "SRB"]
[SourceTitle "playchess.com"]
[Source "ChessBase"]
[SourceQuality "1"]
[TimeControl "40/5400+30:900+30"]

1. e4 {[%emt 0:06:01]} c5 {[%emt 0:01:50]} 2. Nc3 {[%emt 0:00:08]} Nc6 {[%emt 0:00:13]} 3. Bb5 {[%emt 0:00:09]} Nd4 {[%emt 0:00:23]} 4. Nf3 {[%emt 0:00:05]} a6 {[%emt 0:00:17]} 5. Bd3 {[%emt 0:00:25]} g6 {[%emt 0:00:08]} 6. O-O {[%emt 0:00:07]} Bg7 {[%emt 0:00:03]} 7. Re1 {[%emt 0:00:04]} Nxf3+ {[%emt 0:00:36]} 8. Qxf3 {[%emt 0:00:13]} d6 {[%emt 0:00:17]} 9. b3 {[%emt 0:05:25]} Nf6 {[%emt 0:05:26]} 10. Bb2 {[%emt 0:00:52]} Ng4 {[%emt 0:03:56]} 11. Bf1 {[%emt 0:02:14]} O-O {[%emt 0:04:27]} 12. Nd1 {[%emt 0:19:20]} e5 {[%emt 0:10:03]} 13. h3 {[%emt 0:00:24]} Nh6 {[%emt 0:06:32]} 14. Ne3 {[%emt 0:13:03]} Rb8 {[%emt 0:03:02]} 15. c3 {[%emt 0:07:24]} Kh8 {[%emt 0:09:09]} 16. Rad1 {[%emt 0:01:23]} f5 {[%emt 0:02:39]} 17. d4 {[%emt 0:00:19]} fxe4 {[%emt 0:07:52]} 18. Qxe4 {[%emt 0:02:17]} exd4 {[%emt 0:15:02]} 19. cxd4 {[%emt 0:01:29]} Nf5 {[%emt 0:05:47]} 20. Nxf5 {[%emt 0:02:40]} Bxf5 {[%emt 0:00:05]} 21. Qd5 {[%emt 0:00:07]} Qa5 {[%emt 0:07:00]} 22. Re2 {[%emt 0:07:46]} Rbe8 {[%emt 0:06:30]} 23. dxc5 {[%emt 0:00:50]} Bxb2 {[%emt 0:00:49]} 24. Rxb2 {[%emt 0:00:10]} dxc5 {[%emt 0:03:53]} 25. Qxb7 {[%emt 0:01:10]} Rf6 {[%emt 0:01:33]} 26. Re2 {[%emt 0:03:10]} Ref8 {[%emt 0:01:15]} 27. Re7 {[%emt 0:02:50]} g5 {[%emt 0:00:04]} 28. Bd3 {[%emt 0:01:31]} Bxd3 {[%emt 0:01:51]} 29. Rxd3 {[%emt 0:00:05]} Rg6 {[%emt 0:01:37]} 30. Rdd7 {[%emt 0:00:52]} Rg7 {[%emt 0:00:41]} 31. Qe4 {[%emt 0:00:52]} Qxa2 {[%emt 0:02:09]} 32. Rxg7 {[%emt 0:00:15]} Qxf2+ {[%emt 0:00:42]} 33. Kh2 {[%emt 0:00:08]} 1-0

[Event "RUDAR 2 IM 2022"]
[Site "Pozarevac"]
[Date "2022.04.04"]
[Round "3.5"]
[White "Anishka Vikram"]
[Black "Milanovic, Slavisa"]
[Result "0-1"]
[ECO "E91"]
[WhiteElo "2000"]
[BlackElo "2296"]
[Annotator "NA RC"]
[PlyCount "71"]
[EventDate "2022.03.27"]
[EventType "tourn"]
[EventCountry "SRB"]
[SourceTitle "playchess.com"]
[Source "ChessBase"]
[SourceQuality "1"]
[TimeControl "40/5400+30:900+30"]

1. d4 {[%emt 0:00:04]} g6 {[%emt 0:00:36]} 2. c4 {[%emt 0:00:07]} Bg7 {[%emt 0:00:10]} 3. Nc3 {[%emt 0:00:07]} c5 {[%emt 0:00:19]} 4. d5 {[%emt 0:00:13]} e6 {[%emt 0:03:10]} 5. e4 {[%emt 0:01:19]} exd5 {[%emt 0:02:10]} 6. exd5 {[%emt 0:01:11]} Nf6 {[%emt 0:02:03]} 7. Nf3 {[%emt 0:00:40]} O-O {[%emt 0:00:10]} 8. Be2 {[%emt 0:00:09]} d6 {[%emt 0:00:51]} 9. O-O {[%emt 0:00:08]} Nbd7 {[%emt 0:04:01]} 10. Bf4 {[%emt 0:04:29]} Qb6 {[%emt 0:03:12]} 11. Qb3 {[%emt 0:14:07]} Ne8 {[%emt 0:06:10]} 12. Nb5 {[%emt 0:09:04]} Ne5 {[%emt 0:05:40]} 13. Nxe5 {[%emt 1:05:22]} dxe5 {[%emt 0:00:18]} 14. Be3 {[%emt 0:00:00]} Nc7 {[%emt 0:04:36]} 15. a4 {[%emt 0:00:00]} Nxb5 {[%emt 0:04:21]} 16. Qxb5 {[%emt 0:00:00]} Qxb5 {[%emt 0:01:07]} 17. axb5 {[%emt 0:00:00]} b6 {[%emt 0:00:32]} 18. b4 {[%emt 0:00:00]} cxb4 {[%emt 0:02:18]} 19. Bxb6 {[%emt 0:00:00]} Bg4 {[%emt 0:01:03]} 20. Bxg4 {[%emt 0:00:00]} axb6 {[%emt 0:00:07]} 21. Rab1 {[%emt 0:00:00]} f5 {[%emt 0:00:25]} 22. Be2 {[%emt 0:00:00]} Ra2 {[%emt 0:01:21]} 23. Bd1 {[%emt 0:00:00]} Rfa8 {[%emt 0:03:09]} 24. Rxb4 {[%emt 0:00:00]} Bf8 {[%emt 0:00:57]} 25. Rb1 {[%emt 0:00:00]} Bc5 {[%emt 0:00:16]} 26. Bb3 {[%emt 0:00:00]} Rd2 {[%emt 0:00:59]} 27. g3 {[%emt 0:00:00]} e4 {[%emt 0:02:37]} 28. h3 {[%emt 0:00:00]} Ra3 {[%emt 0:01:05]} 29. h4 {[%emt 0:00:00]} Rd3 {[%emt 0:00:20]} 30. d6 {[%emt 0:00:45]} Rxg3+ {[%emt 0:03:28]} 31. Kh2 {[%emt 0:00:05]} Rgxb3 {[%emt 0:00:11]} 32. d7 {[%emt 0:00:45]} Rd3 {[%emt 0:01:08]} 33. Rfd1 {[%emt 0:00:09]} Ra8 {[%emt 0:00:51]} 34. Rxd3 {[%emt 0:02:13]} exd3 {[%emt 0:00:07]} 35. Re1 {[%emt 0:00:04]} Kf7 {[%emt 0:00:10]} 36. Re2 {[%emt 0:07:29]} 0-1

[Event "RUDAR 2 IM 2022"]
[Site "Pozarevac"]
[Date "2022.04.05"]
[Round "4.1"]
[White "Acor, Corey"]
[Black "Anishka Vikram"]
[Result "1-0"]
[ECO "B26"]
[WhiteElo "2326"]
[BlackElo "2000"]
[Annotator "TA"]
[PlyCount "117"]
[EventDate "2022.03.27"]
[EventType "tourn"]
[EventCountry "SRB"]
[SourceTitle "playchess.com"]
[Source "ChessBase"]
[SourceQuality "1"]
[TimeControl "40/5400+30:900+30"]

{[%evp 74,117,41,23,104,0,13,12,4,0,0,0,0,0,4,0,0,0,0,0,0,0,183,182,200,199,400,282,520,515,529,316,310,307,295,237,247,251,325,241,1460,1239,1383,1351,1099,1057]} 1. e4 {[%emt 0:04:59]} c5 {[%emt 0:00:08]} 2. Nc3 {[%emt 0:00:43]} d6 {[%emt 0:00:04]} 3. g3 {[%emt 0:00:07]} g6 {[%emt 0:00:08]} 4. Bg2 {[%emt 0:00:05]} Bg7 {[%emt 0:00:06]} 5. d3 {[%emt 0:00:05]} Nc6 {[%emt 0:00:13]} 6. Be3 {[%emt 0:00:08]} Rb8 {[%emt 0:03:33]} 7. Nge2 {[%emt 0:06:18]} Nd4 {[%emt 0:00:16]} 8. O-O {[%emt 0:00:04]} e6 {[%emt 0:04:31]} 9. Rb1 {[%emt 0:10:30]} Bd7 {[%emt 0:06:27]} 10. Qd2 {[%emt 0:03:50]} Ne7 {[%emt 0:12:39]} 11. Bh6 {[%emt 0:03:46]} O-O {[%emt 0:01:16]} 12. Bxg7 {[%emt 0:00:15]} Kxg7 {[%emt 0:00:07]} 13. Nxd4 {[%emt 0:00:21]} cxd4 {[%emt 0:00:02]} 14. Ne2 {[%emt 0:00:02]} e5 {[%emt 0:00:28]} 15. c3 {[%emt 0:04:02]} dxc3 {[%emt 0:00:15]} 16. bxc3 {[%emt 0:00:57]} b5 {[%emt 0:05:11]} 17. d4 {[%emt 0:02:03]} Nc6 {[%emt 0:04:06]} 18. Rfd1 {[%emt 0:03:22]} Bc8 {[%emt 0:12:58]} 19. f4 {[%emt 0:21:26]} Ba6 {[%emt 0:09:27]} 20. Bf1 {[%emt 0:07:10]} Qc7 {[%emt 0:07:55]} 21. Nc1 {[%emt 0:08:43]} Na5 {[%emt 0:06:32]} 22. Nd3 {[%emt 0:02:42]} Nc4 {[%emt 0:03:21]} 23. Qe1 {[%emt 0:00:11]} Rfe8 {[%emt 0:02:35]} 24. fxe5 {[%emt 0:02:18]} dxe5 {[%emt 0:00:07]} 25. Nc5 {[%emt 0:00:28]} Bc8 {[%emt 0:02:15]} 26. Bxc4 {[%emt 0:02:06]} bxc4 {[%emt 0:00:06]} 27. Qe2 {[%emt 0:00:32]} Rxb1 {[%emt 0:05:28]} 28. Rxb1 {[%emt 0:00:01]} Be6 {[%emt 0:02:35]} 29. Rb7 {[%emt 0:01:58]} Qd6 {[%emt 0:01:50]} 30. Qe3 {[%emt 0:05:25]} Bc8 {[%emt 0:02:28]} 31. Rxa7 {[%emt 0:01:25]} Qb6 {[%emt 0:01:14]} 32. Ra4 {[%emt 0:05:24]} Qb1+ {[%emt 0:00:07]} 33. Kf2 {[%emt 0:00:01]} Qc2+ {[%emt 0:00:20]} 34. Qe2 {[%emt 0:00:20]} Qxc3 {[%emt 0:02:14]} 35. Rxc4 {[%emt 0:00:03]} Qa5 {[%emt 0:00:58]} 36. d5 {[%emt 0:01:19]} h5 {[%emt 0:01:12]} 37. a4 {[%emt 0:02:05]} Bg4 {[%emt 0:00:33]} 38. Qb2 {[%emt 0:01:07]} Qd8 {[%emt 0:01:42] [#]} (38... Bh3 $11) 39. Rc1 {[%emt 0:01:44]} (39. Kg2 $1 $16) 39... Qf6+ {[%emt 0:01:41]} 40. Kg1 {[%emt 0:00:00]} Rc8 {[%emt 0:00:00]} 41. Qf2 {[%emt 0:03:38]} Qg5 $1 {[%emt 0:02:44]} 42. Rf1 {[%emt 0:00:23]} Qe7 {[%emt 0:00:42]} 43. Rc1 {[%emt 0:06:49]} Qg5 {[%emt 0:00:17]} 44. Qe1 {[%emt 0:04:01]} h4 {[%emt 0:05:03]} 45. gxh4 {[%emt 0:01:26]} Qf4 $1 {[%emt 0:00:52]} 46. Rc3 {[%emt 0:00:36]} Bh3 $1 {[%emt 0:02:58]} 47. a5 {[%emt 0:01:47]} Qg4+ $2 {[%emt 0:01:44]} (47... Rxc5 $11 48. Rxc5 Qg4+ 49. Qg3 Qd1+ 50. Kf2 Qd2+ 51. Kf3 Qd3+ 52. Kf2 Qd2+ 53. Kf3 Qd3+ 54. Kf2 Qd2+) 48. Rg3 $18 {[%emt 0:00:32]} Qh5 {[%emt 0:01:23]} 49. Nd3 {[%emt 0:00:03]} ({And not} 49. Rxh3 Rxc5 50. Rg3 Rc2 $11) 49... Bg4 $2 {[%emt 0:01:36]} (49... Bd7 {is a better defense.} 50. Rg5 Qf3) 50. a6 {[%emt 0:00:51]} Ra8 $2 {[%emt 0:01:50]} (50... Be2 {might work better.} 51. Nxe5 Qxe5 52. Qxe2 Qa1+ 53. Kg2 Qa4) 51. Qa1 $18 {[%emt 0:02:06]} Be2 {[%emt 0:03:14]} 52. Qxe5+ {[%emt 0:00:34]} Qxe5 {[%emt 0:00:02]} 53. Nxe5 {[%emt 0:00:01]} Rxa6 {[%emt 0:00:11]} 54. Re3 {[%emt 0:00:22]} Bb5 {[%emt 0:00:56]} 55. Rb3 {[%emt 0:00:15]} f6 {[%emt 0:00:55]} 56. Ng4 {[%emt 0:01:16]} Bd7 $2 {[%emt 0:00:58]} (56... Be2) 57. Rb7 $18 {[%emt 0:00:15]} Rd6 {[%emt 0:00:02]} 58. Ne3 {[%emt 0:00:15]} Kf8 {[%emt 0:00:39]} 59. Nc4 {[%emt 0:00:15]} 1-0

[Event "RUDAR 2 IM 2022"]
[Site "Pozarevac"]
[Date "2022.04.05"]
[Round "4.2"]
[White "Ivanovic, Marko"]
[Black "Velikic, Adela"]
[Result "0-1"]
[ECO "A13"]
[WhiteElo "2302"]
[BlackElo "2258"]
[Annotator "TA"]
[PlyCount "82"]
[EventDate "2022.03.27"]
[EventType "tourn"]
[EventCountry "SRB"]
[SourceTitle "playchess.com"]
[Source "ChessBase"]
[SourceQuality "1"]
[TimeControl "40/5400+30:900+30"]

{[%evp 45,82,-254,-254,-254,-254,-247,-193,-193,-197,-181,-125,-128,-118,-249,-43,-60,-43,-48,-48,-45,-39,-58,-76,-138,-124,-295,-284,-431,-425,-12841,-12841,-12840,-12839,-12840,-12840,-29988,-12843,-12843,-12843]} 1. Nf3 {[%emt 0:13:12]} d5 {[%emt 0:00:05]} 2. g3 {[%emt 0:00:37]} Nf6 {[%emt 0:00:08]} 3. Bg2 {[%emt 0:00:07]} c5 {[%emt 0:00:03]} 4. O-O {[%emt 0:00:17]} e6 {[%emt 0:00:05]} 5. c4 {[%emt 0:06:18]} d4 {[%emt 0:00:09]} 6. e3 {[%emt 0:04:09]} Nc6 {[%emt 0:00:10]} 7. exd4 {[%emt 0:00:05]} cxd4 {[%emt 0:00:05]} 8. d3 {[%emt 0:00:06]} h6 {[%emt 0:00:40]} 9. Re1 {[%emt 0:00:16]} Bd6 {[%emt 0:09:22]} 10. Na3 {[%emt 0:02:31]} O-O {[%emt 0:07:41]} 11. Nc2 {[%emt 0:03:21]} a5 {[%emt 0:01:51]} 12. a3 {[%emt 0:02:38]} e5 {[%emt 0:08:20]} 13. Rb1 {[%emt 0:03:10]} a4 {[%emt 0:03:07]} 14. b4 {[%emt 0:00:11]} axb3 {[%emt 0:00:13]} 15. Rxb3 {[%emt 0:00:08]} Re8 {[%emt 0:05:07]} 16. Bd2 {[%emt 0:21:32]} Na5 {[%emt 0:21:18]} 17. Rb2 {[%emt 0:08:45]} Qc7 {[%emt 0:04:32]} 18. Bb4 {[%emt 0:01:32]} Bd7 {[%emt 0:01:15]} 19. Nd2 {[%emt 0:07:44]} Bc6 {[%emt 0:05:32]} 20. f3 {[%emt 0:00:43]} Rab8 {[%emt 0:02:55]} 21. Ne4 {[%emt 0:02:02]} Nxe4 {[%emt 0:01:45]} 22. fxe4 {[%emt 0:00:07]} b5 {[%emt 0:06:35]} 23. Qd2 {[%emt 0:05:39]} Bxb4 {[%emt 0:00:48]} 24. Rxb4 {[%emt 0:01:54]} bxc4 {[%emt 0:01:02]} 25. dxc4 {[%emt 0:00:05]} Rxb4 {[%emt 0:00:43]} 26. Nxb4 {[%emt 0:00:58]} Bb7 {[%emt 0:02:45]} (26... Nxc4 27. Qd3 Ne3 28. Rc1 $17) 27. Bf1 {[%emt 0:01:47]} Rc8 {[%emt 0:01:14]} ({Worse is} 27... Nxc4 28. Qc2 d3 29. Bxd3 Qb6+ 30. Qf2 $15) (27... Nb3 $19 28. Qc2 Nc5) 28. Qc2 $17 {[%emt 0:00:38]} Qc5 {[%emt 0:02:22]} (28... Nxc4 29. Rc1 Qb6 30. Bxc4 $15) 29. Bd3 {[%emt 0:00:21]} (29. Nd3 $17 Qxa3 30. Nxe5) 29... Qa7 $2 {[%emt 0:04:15]} ({Weaker is} 29... Nxc4 30. Rc1 $11) (29... f5 $1 $19 {[%cal Rf5e4] White must now prevent ...fxe4.} 30. Kh1 (30. exf5 $2 e4 $19) 30... Nxc4) 30. Qa4 $15 {[%emt 0:01:13]} Bc6 {[%emt 0:03:12]} 31. Nxc6 {[%emt 0:04:10]} Rxc6 {[%emt 0:00:05]} 32. Rb1 {[%emt 0:00:25]} Qc7 {[%emt 0:00:46]} 33. Rb4 {[%emt 0:02:09]} Kh7 {[%emt 0:00:14]} 34. Kg2 {[%emt 0:00:40]} (34. Qb5 $142) 34... Nb7 {[%emt 0:03:25]} 35. Qd1 $2 {[%emt 0:03:38]} (35. Qa7 $17 {keeps fighting.} Nc5 36. Qxc7 Rxc7 37. Bb1) 35... Nc5 {[%emt 0:00:25]} 36. h4 {[%emt 0:00:23]} (36. a4 {was necessary.}) 36... Qa5 $19 {[%emt 0:01:02]} 37. Qh5 {[%emt 0:04:05]} (37. Bb1 $142 Qxa3 38. Rb5) 37... Nxd3 $19 {[%emt 0:02:07]} 38. Qf5+ {[%emt 0:00:03]} Rg6 {[%emt 0:00:13]} 39. h5 {[%emt 0:00:49]} Nf4+ {[%emt 0:01:08]} 40. Kh2 {[%emt 0:00:00] [#]} Nxh5 {[%emt 0:00:00]} (40... Qxa3 $142 $1 41. hxg6+ fxg6 42. Qxg6+ Nxg6 43. Rb6 Qa2+ 44. Kh3 h5 45. c5 Qf2 46. Rb3 {[#]} Nf4+ $1 {[%mdl 512]} 47. gxf4 exf4 48. Rf3 Qxf3+ 49. Kh2 h4 50. e5 h3 51. Kg1 Qg2#) 41. Qxh5 $19 {[%emt 0:01:05]} Qxa3 {[%emt 0:00:25]} 0-1

[Event "RUDAR 2 IM 2022"]
[Site "Pozarevac"]
[Date "2022.04.05"]
[Round "4.3"]
[White "Bryakin, Mikhail"]
[Black "Dudukovic, Nikola"]
[Result "1-0"]
[ECO "E10"]
[WhiteElo "2481"]
[BlackElo "2362"]
[Annotator "TA"]
[PlyCount "55"]
[EventDate "2022.03.27"]
[EventType "tourn"]
[EventCountry "SRB"]
[SourceTitle "playchess.com"]
[Source "ChessBase"]
[SourceQuality "1"]
[TimeControl "40/5400+30:900+30"]

{[%evp 13,55,18,50,36,75,37,49,42,104,103,101,74,91,87,86,87,103,103,105,64,112,109,111,101,120,97,93,87,87,87,81,86,90,90,90,90,90,90,339,338,777,768,773,673]} 1. d4 {[%emt 0:02:21]} Nf6 {[%emt 0:00:05]} 2. c4 {[%emt 0:00:07]} e6 {[%emt 0:00:03]} 3. Nf3 {[%emt 0:00:08]} c5 {[%emt 0:00:09]} 4. d5 {[%emt 0:00:11]} b5 {[%emt 0:00:06]} 5. dxe6 {[%emt 0:03:38]} fxe6 {[%emt 0:02:13]} 6. cxb5 {[%emt 0:00:03]} d5 {[%emt 0:00:08]} 7. e3 {[%emt 0:02:17]} (7. Nc3 $5 {[%cal Re2e4]}) 7... Nbd7 {[%emt 0:02:35]} 8. Nbd2 {[%emt 0:02:09]} Be7 {[%emt 0:01:46]} 9. b3 {[%emt 0:01:04]} O-O {[%emt 0:02:20]} 10. Bb2 {[%emt 0:00:33]} Qc7 {[%emt 0:19:22]} ({Better is} 10... e5 $1 $14) 11. Be2 $16 {[%emt 0:05:14]} (11. Qc2 {looks sharper.} Bb7 12. Ng5 Qd6 13. Be2) 11... a6 {[%emt 0:10:18]} 12. bxa6 {[%emt 0:04:44]} Bxa6 {[%emt 0:00:10]} 13. Bxa6 {[%emt 0:00:54]} Rxa6 {[%emt 0:00:06] [#]} 14. O-O $1 {[%emt 0:00:53]} Ng4 {[%emt 0:08:12]} 15. Qe2 {[%emt 0:02:50]} Rfa8 {[%emt 0:02:06]} 16. h3 {[%emt 0:03:45]} Bf6 {[%emt 0:01:27]} (16... Nh6 $14 {should be considered.}) 17. Bxf6 $16 {[%emt 0:01:13]} Ngxf6 {[%emt 0:00:05]} 18. a4 {[%emt 0:02:41]} Rb6 {[%emt 0:09:34]} 19. Rac1 {[%emt 0:03:35]} Qb7 {[%emt 0:13:16]} 20. e4 {[%emt 0:07:39]} dxe4 {[%emt 0:03:28]} 21. Ng5 {[%emt 0:01:40]} Qd5 {[%emt 0:07:22]} 22. Ngxe4 {[%emt 0:02:46]} Nxe4 {[%emt 0:00:06]} 23. Nxe4 {[%emt 0:00:40]} Qxb3 {[%emt 0:01:51]} 24. a5 {[%emt 0:13:02]} Rxa5 {[%emt 0:03:04]} 25. Rfd1 {[%emt 0:04:39]} Rb7 $2 {[%emt 0:05:36]} (25... Nf8 $16 {is a better defense.}) 26. Nd6 $18 {[%emt 0:03:27]} (26. Qh5 Nf8 $14) 26... Rba7 $2 {[%emt 0:02:36]} (26... Nf8 27. Nxb7 Qxb7) 27. Rb1 $18 {[%emt 0:02:00]} ({Less strong is} 27. Qh5 Nf8 $14) 27... Ra2 {[%emt 0:01:12]} 28. Qe1 {[%emt 0:01:46]} ({Weaker is} 28. Rxb3 Rxe2 29. Rb7 Rea2 $11) 1-0